lending/lending_fUSD_20260119
["ID","MTS","AMOUNT","RATE_DAILY","PERIOD"]
[402688006,1768805320695,-848.89414158,0.00043076,120]
[402688008,1768805320723,-447.44526415,0.00043076,120]
[402688009,1768805320749,-175.39173012,0.00043076,120]
[402688011,1768805320776,-355.66238095,0.00043076,120]
[402688013,1768805320802,-1508.85212196,0.00043076,120]
[402688014,1768805320833,-2526.76854062,0.00043076,120]
[402688016,1768805320862,-1391.63018149,0.00043076,120]
[402688018,1768805320890,-270.63263534,0.00043076,120]
[402688019,1768805320918,-235.27363507,0.00043076,30]
[402688021,1768805320947,-997.0,0.00043076,30]
[402688022,1768805320974,-265.06750775,0.00043076,120]
[402688024,1768805321003,-196.27492359,0.00043076,30]
[402688026,1768805321032,-2058.6300764,0.00043076,120]
[402688033,1768805321304,-414.69008703,0.00043076,120]
[402688035,1768805321332,-309.83945532,0.00043076,30]
[402688036,1768805321360,-786.68489119,0.00043076,120]
[402688038,1768805321389,-942.62190509,0.00043076,30]
[402688040,1768805321419,-556.05862949,0.00043076,30]
[402688041,1768805321448,-1442.16350977,0.00043076,120]
[402688043,1768805321476,-3163.20422116,0.00043076,120]
[402688045,1768805321505,-1089.75686916,0.00043076,120]
[402688046,1768805321534,-1890.04029975,0.00043076,120]
[402688048,1768805321561,-602.0547361,0.00043076,120]
[402688050,1768805321588,-1198.93243603,0.00043076,60]
[402688051,1768805321616,-267.75126635,0.00043076,120]
[402688053,1768805321644,-1203.88034306,0.00043076,30]
[402688055,1768805321674,-2518.00764619,0.00043076,120]
[402688056,1768805321703,-1391.12014621,0.00043076,120]
[402688058,1768805321731,-2732.3382798,0.00043076,120]
[402688060,1768805321759,-2203.98739445,0.00043076,120]
[402688061,1768805321788,-293.27233642,0.00043076,120]
[402688063,1768805321815,-239.76456554,0.00043076,30]
[402688065,1768805321844,-1225.9546498,0.00043076,120]
[402688066,1768805321876,-522.33255876,0.00043076,30]
[402688068,1768805321907,-342.55526619,0.00043076,120]
[402688070,1768805321937,-284.06702295,0.00043076,30]
[402688071,1768805321967,-3113.60918289,0.00043076,30]
[402688073,1768805321995,-1382.97546177,0.00043076,120]
[402688075,1768805322026,-3527.03515476,0.00043076,60]
[402688076,1768805322057,-2511.8751357,0.00043076,30]
[402688078,1768805322086,-2912.99625206,0.00043076,30]
[402688080,1768805322119,-246.83725521,0.00043076,120]
[402688081,1768805322146,-1471.62413231,0.00043076,120]
[402688083,1768805322173,-1515.59215856,0.00043076,120]
[402688085,1768805322201,-1899.66121335,0.00043076,30]
[402688086,1768805322228,-4273.98066914,0.00043076,120]
[402688088,1768805322256,-2517.56283833,0.00043076,30]
[402688089,1768805322283,-2460.46944742,0.00043076,120]
[402688091,1768805322313,-152.10052783,0.00043076,120]
[402688093,1768805322341,-1580.31691079,0.00043076,30]
[402688095,1768805322369,-3509.88409513,0.00043076,30]
[402688096,1768805322399,-3362.04287606,0.00043076,120]
[402688098,1768805322427,-1405.65184903,0.00043076,120]
[402688100,1768805322460,-756.0,0.00043076,120]
[402688101,1768805322502,-1247.44132214,0.00043076,120]
[402688103,1768805322532,-3246.16680079,0.00043076,120]
[402688105,1768805322560,-2414.65073763,0.00043076,30]
[402688106,1768805322589,-1067.54240939,0.00043076,120]
[402688108,1768805322615,-1161.11235033,0.00043076,120]
[402688110,1768805322643,-518.21402922,0.00043076,120]
[402688111,1768805322671,-962.28357699,0.00043076,120]
[402688113,1768805322698,-180.93430383,0.00043076,120]
[402688115,1768805322725,-833.74038062,0.00043076,120]
[402688117,1768805322752,-1146.19934029,0.00043076,120]
[402688118,1768805322780,-553.08097444,0.00043076,120]
[402688120,1768805322809,-539.73953479,0.00043076,120]
[402688122,1768805322837,-1596.42012007,0.00043076,120]
[402688123,1768805322866,-1304.86701689,0.00043076,120]
[402688125,1768805322892,-1463.9131773,0.00043076,120]
[402688127,1768805322921,-1106.01628665,0.00043076,30]
[402688129,1768805322953,-314.02909372,0.00043076,120]
[402688130,1768805322982,-1060.0757891,0.00043076,120]
[402688132,1768805323008,-1736.98231116,0.00043076,120]
[402688134,1768805323038,-2575.92278622,0.00043076,120]
[402688135,1768805323067,-197.10108362,0.00043076,120]
[402688137,1768805323095,-2250.01025241,0.00043076,120]
[402688139,1768805323124,-2060.22552351,0.00043076,120]
[402688140,1768805323152,-417.1358868,0.00043076,30]
[402688142,1768805323182,-2095.77526763,0.00043076,30]
[402688144,1768805323211,-1256.06831254,0.00043076,30]
[402688145,1768805323239,-1632.34423092,0.00043076,120]
[402688147,1768805323266,-1476.98970841,0.00043076,120]
[402688149,1768805323294,-983.92727559,0.00043076,120]
[402688150,1768805323320,-274.99898702,0.00043076,120]
[402688152,1768805323349,-1433.07606408,0.00043076,120]
[402688154,1768805323383,-4028.87789683,0.00043076,30]
[402688155,1768805323411,-482.84266288,0.00043076,60]
[402688157,1768805323445,-870.80711906,0.00043076,120]
[402688159,1768805323473,-229.81172689,0.00043076,120]
[402688161,1768805323503,-1035.78545556,0.00043076,120]
[402688162,1768805323532,-942.49127787,0.00043076,120]
[402688164,1768805323561,-1208.35078051,0.00043076,120]
[402688166,1768805323590,-478.73233927,0.00043076,120]
[402688167,1768805323618,-2400.46313294,0.00043076,30]
[402688169,1768805323646,-1591.60574023,0.00043076,120]
[402688171,1768805323675,-1589.94369076,0.00043076,30]
[402688172,1768805323703,-519.38069313,0.00043076,90]
[402688174,1768805323736,-1328.37394982,0.00043076,120]
[402688176,1768805323766,-494.90943308,0.00043076,30]
[402688178,1768805323794,-500.0,0.00043076,120]
[402688179,1768805323824,-1511.02433751,0.00043076,120]
[402688181,1768805323853,-791.42496006,0.00043076,120]
[402688183,1768805323887,-2073.84842986,0.00043076,120]
[402688184,1768805323916,-2710.97858054,0.00043076,120]
[402688186,1768805323945,-1434.201651,0.00043076,120]
[402688188,1768805323977,-658.0,0.00043076,120]
[402688189,1768805324007,-2384.10585108,0.00043076,120]
[402688191,1768805324036,-2557.32069438,0.00043076,120]
[402688193,1768805324068,-1317.76982134,0.00043076,30]
[402688200,1768805324375,-838.38237886,0.00043076,30]
[402688201,1768805324404,-237.40019084,0.00043076,120]
[402688202,1768805324435,-1803.56396021,0.00043076,120]
[402688203,1768805324462,-1734.93832529,0.00043076,120]
[402688204,1768805324488,-170.37260286,0.00043076,120]
[402688206,1768805324516,-1406.05651658,0.00043076,30]
[402688207,1768805324545,-275.87846795,0.00043076,120]
[402688209,1768805324573,-1000.0,0.00043076,30]
[402688211,1768805324600,-482.42222902,0.00043076,120]
[402688212,1768805324628,-1002.74599542,0.00043076,30]
[402688214,1768805324655,-749.0,0.00043076,120]
[402688216,1768805324688,-3081.85,0.00043076,120]
[402688218,1768805324716,-3422.27664259,0.00043076,120]
[402688219,1768805324744,-50000.0,0.00043076,30]
[402688221,1768805324772,-50000.0,0.00043076,30]
[402688223,1768805324800,-50000.0,0.00043076,30]
[402688224,1768805324830,-50000.0,0.00043076,30]
[402688226,1768805324858,-930.81230894,0.00043076,120]
[402688228,1768805324887,-2612.77204757,0.00043076,64]
[402688229,1768805324916,-2000.0,0.00043076,120]
[402688231,1768805324944,-2000.0,0.00043076,120]
[402688233,1768805324975,-2000.0,0.00043076,120]
[402688234,1768805325004,-379.0,0.00043076,120]
[402688236,1768805325035,-50000.0,0.00043076,30]
[402688238,1768805325065,-50000.0,0.00043076,31]
[402688239,1768805325097,-50000.0,0.00043076,32]
[402688241,1768805325127,-50000.0,0.00043076,33]
[402688243,1768805325159,-50000.0,0.00043076,34]
[402688245,1768805325205,-50000.0,0.00043076,35]
[402688247,1768805325235,-1000.0,0.00043076,120]
[402688248,1768805325266,-1000.0,0.00043076,120]
[402688250,1768805325295,-1200.0,0.00043076,120]
[402688252,1768805325325,-1000.0,0.00043076,120]
[402688254,1768805325356,-50000.0,0.00043076,36]
[402688255,1768805325387,-50000.0,0.00043076,37]
[402688257,1768805325416,-1000.0,0.00043076,120]
[402688259,1768805325453,-50000.0,0.00043076,38]
[402688261,1768805325482,-1100.0,0.00043076,120]
[402688262,1768805325512,-50000.0,0.00043076,39]
[402688264,1768805325543,-50000.0,0.00043076,40]
[402688266,1768805325571,-3000.0,0.00043076,120]
[402688267,1768805325599,-2800.0,0.00043076,120]
[402688269,1768805325629,-530.0,0.00043076,120]
[402688271,1768805325663,-3331.43492832,0.00043076,120]
[402688273,1768805325691,-204.32760968,0.00043076,30]
[402688275,1768805325720,-703.0,0.00043076,120]
[402688277,1768805325748,-500.0,0.00043076,120]
[402688278,1768805325776,-45225.17,0.00043076,120]
[402688280,1768805325807,-527.04,0.00043076,120]
[402688282,1768805325836,-500.0,0.00043076,30]
[402688284,1768805325867,-500.0,0.00043076,120]
[402688286,1768805325898,-500.0,0.00043076,120]
[402688287,1768805325927,-601.53494886,0.00043076,120]
[402688289,1768805325956,-500.0,0.00043076,120]
[402688291,1768805325985,-500.0,0.00043076,120]
[402688293,1768805326014,-500.0,0.00043076,120]
[402688294,1768805326044,-500.0,0.00043076,120]
[402688296,1768805326073,-442.13151235,0.00043076,120]
[402688298,1768805326103,-500.0,0.00043076,120]
[402688300,1768805326131,-500.0,0.00043076,120]
[402688301,1768805326160,-500.0,0.00043076,120]
[402688303,1768805326190,-500.0,0.00043076,120]
[402688305,1768805326219,-280.03616481,0.00043076,120]
[402688306,1768805326248,-500.0,0.00043076,120]
[402688308,1768805326278,-500.0,0.00043076,120]
[402688310,1768805326307,-500.0,0.00043076,120]
[402688311,1768805326334,-500.0,0.00043076,120]
[402688313,1768805326363,-500.0,0.00043076,120]
[402688315,1768805326392,-461.25024724,0.00043076,120]
[402688317,1768805326419,-500.0,0.00043076,120]
[402688318,1768805326445,-500.0,0.00043076,120]
[402688320,1768805326472,-500.0,0.00043076,120]
[402688322,1768805326499,-500.0,0.00043076,120]
[402688324,1768805326527,-500.0,0.00043076,120]
[402688325,1768805326554,-500.0,0.00043076,120]
[402688327,1768805326582,-500.0,0.00043076,120]
[402688329,1768805326608,-500.0,0.00043076,120]
[402688330,1768805326637,-500.0,0.00043076,120]
[402688332,1768805326664,-500.0,0.00043076,120]
[402688334,1768805326692,-500.0,0.00043076,120]
[402688336,1768805326719,-158.85423683,0.00043076,120]
[402688337,1768805326746,-500.0,0.00043076,120]
[402688339,1768805326773,-500.0,0.00043076,120]
[402688341,1768805326804,-500.0,0.00043076,120]
[402688342,1768805326833,-500.0,0.00043076,120]
[402688344,1768805326864,-500.0,0.00043076,120]
[402688345,1768805326894,-500.0,0.00043076,120]
[402688347,1768805326923,-500.0,0.00043076,120]
[402688349,1768805326955,-500.0,0.00043076,120]
[402688350,1768805326985,-500.0,0.00043076,120]
[402688352,1768805327015,-500.0,0.00043076,120]
[402688354,1768805327043,-500.0,0.00043076,120]
[402688355,1768805327071,-500.0,0.00043076,120]
[402688357,1768805327099,-500.0,0.00043076,120]
[402688359,1768805327127,-500.0,0.00043076,120]
[402688367,1768805327420,-500.0,0.00043076,120]
[402688368,1768805327448,-500.0,0.00043076,120]
[402688370,1768805327475,-500.0,0.00043076,120]
[402688372,1768805327505,-500.0,0.00043076,120]
[402688373,1768805327535,-182.02617878,0.00043076,120]
[402688375,1768805327561,-500.0,0.00043076,120]
[402688377,1768805327587,-500.0,0.00043076,120]
[402688378,1768805327614,-500.0,0.00043076,120]
[402688380,1768805327640,-500.0,0.00043076,120]
[402688382,1768805327666,-500.0,0.00043076,120]
[402688383,1768805327692,-500.0,0.00043076,120]
[402688385,1768805327719,-161.20647173,0.00043076,120]
[402688387,1768805327746,-500.0,0.00043076,120]
[402688388,1768805327773,-500.0,0.00043076,120]
[402688390,1768805327800,-500.0,0.00043076,120]
[402688392,1768805327830,-500.0,0.00043076,120]
[402688393,1768805327860,-324.07324909,0.00043076,120]
[402688395,1768805327888,-500.0,0.00043076,120]
[402688396,1768805327915,-500.0,0.00043076,120]
[402688398,1768805327944,-492.1398225,0.00043076,120]
[402688399,1768805327972,-253.68769872,0.00043076,120]
[402688401,1768805328000,-500.0,0.00043076,120]
[402688402,1768805328030,-500.0,0.00043076,120]
[402688404,1768805328059,-500.0,0.00043076,120]
[402688406,1768805328088,-500.0,0.00043076,120]
[402688407,1768805328116,-500.0,0.00043076,120]
[402688409,1768805328146,-500.0,0.00043076,120]
[402688410,1768805328174,-500.0,0.00043076,120]
[402688412,1768805328203,-397.21207331,0.00043076,120]
[402688414,1768805328232,-500.0,0.00043076,120]
[402688415,1768805328262,-500.0,0.00043076,120]
[402688417,1768805328292,-500.0,0.00043076,120]
[402688418,1768805328321,-500.0,0.00043076,120]
[402688420,1768805328348,-310.2594973,0.00043076,120]
[402688422,1768805328379,-500.0,0.00043076,60]
[402688423,1768805328406,-500.0,0.00043076,60]
[402688425,1768805328433,-500.0,0.00043076,60]
[402688427,1768805328461,-500.0,0.00043076,60]
[402688428,1768805328488,-500.0,0.00043076,60]
[402688429,1768805328514,-500.0,0.00043076,60]
[402688430,1768805328541,-500.0,0.00043076,60]
[402688431,1768805328568,-500.0,0.00043076,60]
[402688432,1768805328595,-500.0,0.00043076,60]
[402688433,1768805328621,-500.0,0.00043076,60]
[402688434,1768805328648,-500.0,0.00043076,60]
[402688435,1768805328675,-500.0,0.00043076,60]
[402688436,1768805328703,-500.0,0.00043076,60]
[402688438,1768805328730,-500.0,0.00043076,60]
[402688440,1768805328757,-500.0,0.00043076,60]
[402688441,1768805328784,-500.0,0.00043076,60]
[402688443,1768805328813,-500.0,0.00043076,60]
[402688444,1768805328842,-471.66822087,0.00043076,60]
[402688446,1768805328872,-500.0,0.00043076,120]
[402688448,1768805328905,-500.0,0.00043076,120]
[402688449,1768805328932,-500.0,0.00043076,120]
[402688451,1768805328958,-596.53971654,0.00043076,120]
[402688453,1768805328986,-500.0,0.00043076,120]
[402688454,1768805329013,-500.0,0.00043076,120]
[402688456,1768805329040,-500.0,0.00043076,120]
[402688457,1768805329066,-500.0,0.00043076,120]
[402688459,1768805329095,-348.83709258,0.00043076,120]
[402688461,1768805329125,-500.0,0.00043076,120]
[402688462,1768805329153,-500.0,0.00043076,120]
[402688464,1768805329182,-500.0,0.00043076,120]
[402688466,1768805329210,-500.0,0.00043076,120]
[402688467,1768805329239,-500.0,0.00043076,120]
[402688469,1768805329266,-500.0,0.00043076,120]
[402688471,1768805329294,-500.0,0.00043076,120]
[402688472,1768805329323,-500.0,0.00043076,120]
[402688474,1768805329351,-500.0,0.00043076,120]
[402688475,1768805329380,-500.0,0.00043076,120]
[402688477,1768805329407,-500.0,0.00043076,120]
[402688479,1768805329437,-500.0,0.00043076,120]
[402688480,1768805329468,-500.0,0.00043076,120]
[402688482,1768805329496,-592.49267597,0.00043076,120]
[402688483,1768805329522,-500.0,0.00043076,120]
[402688485,1768805329551,-540.46526297,0.00043076,120]
[402688487,1768805329580,-500.0,0.00043076,120]
[402688488,1768805329609,-500.0,0.00043076,120]
[402688490,1768805329637,-500.0,0.00043076,120]
[402688491,1768805329665,-500.0,0.00043076,120]
[402688493,1768805329694,-500.0,0.00043076,120]
[402688495,1768805329721,-500.0,0.00043076,120]
[402688496,1768805329749,-500.0,0.00043076,120]
[402688498,1768805329777,-500.0,0.00043076,120]
[402688500,1768805329807,-500.0,0.00043076,120]
[402688501,1768805329836,-500.0,0.00043076,120]
[402688503,1768805329865,-500.0,0.00043076,120]
[402688505,1768805329893,-500.0,0.00043076,120]
[402688506,1768805329925,-500.0,0.00043076,120]
[402688508,1768805329954,-500.0,0.00043076,120]
[402688510,1768805329983,-479.69181322,0.00043076,120]
[402688511,1768805330012,-500.0,0.00043076,120]
[402688513,1768805330040,-500.0,0.00043076,120]
[402688519,1768805330270,-500.0,0.00043076,120]
[402688521,1768805330297,-500.0,0.00043076,120]
[402688522,1768805330324,-500.0,0.00043076,120]
[402688524,1768805330351,-500.0,0.00043076,120]
[402688526,1768805330377,-500.0,0.00043076,120]
[402688527,1768805330403,-500.0,0.00043076,120]
[402688529,1768805330430,-500.0,0.00043076,120]
[402688531,1768805330456,-500.0,0.00043076,120]
[402688532,1768805330483,-500.0,0.00043076,120]
[402688534,1768805330510,-500.0,0.00043076,120]
[402688536,1768805330536,-500.0,0.00043076,120]
[402688538,1768805330562,-500.0,0.00043076,120]
[402688539,1768805330590,-500.0,0.00043076,120]
[402688541,1768805330617,-500.0,0.00043076,120]
[402688542,1768805330645,-500.0,0.00043076,120]
[402688544,1768805330672,-500.0,0.00043076,120]
[402688546,1768805330699,-500.0,0.00043076,120]
[402688547,1768805330724,-500.0,0.00043076,120]
[402688549,1768805330752,-500.0,0.00043076,120]
[402688551,1768805330780,-500.0,0.00043076,120]
[402688553,1768805330815,-500.0,0.00043076,120]
[402688554,1768805330841,-500.0,0.00043076,120]
[402688556,1768805330868,-617.95743221,0.00043076,120]
[402688558,1768805330896,-500.0,0.00043076,120]
[402688559,1768805330924,-500.0,0.00043076,120]
[402688561,1768805330952,-500.0,0.00043076,120]
[402688562,1768805330981,-500.0,0.00043076,120]
[402688564,1768805331009,-500.0,0.00043076,120]
[402688566,1768805331038,-500.0,0.00043076,120]
[402688567,1768805331067,-500.0,0.00043076,120]
[402688569,1768805331095,-500.0,0.00043076,120]
[402688571,1768805331123,-500.0,0.00043076,120]
[402688572,1768805331151,-500.0,0.00043076,120]
[402688574,1768805331180,-500.0,0.00043076,120]
[402688576,1768805331209,-500.0,0.00043076,120]
[402688577,1768805331238,-500.0,0.00043076,120]
[402688579,1768805331267,-500.0,0.00043076,120]
[402688580,1768805331298,-500.0,0.00043076,120]
[402688582,1768805331326,-391.22508111,0.00043076,120]
[402688584,1768805331353,-500.0,0.00043076,120]
[402688585,1768805331380,-500.0,0.00043076,120]
[402688587,1768805331408,-500.0,0.00043076,120]
[402688588,1768805331436,-500.0,0.00043076,120]
[402688590,1768805331462,-500.0,0.00043076,120]
[402688592,1768805331489,-500.0,0.00043076,120]
[402688593,1768805331516,-500.0,0.00043076,120]
[402688595,1768805331542,-500.0,0.00043076,120]
[402688597,1768805331570,-500.0,0.00043076,120]
[402688598,1768805331596,-347.88248762,0.00043076,120]
[402688600,1768805331623,-500.0,0.00043076,120]
[402688602,1768805331647,-500.0,0.00043076,120]
[402688603,1768805331672,-500.0,0.00043076,120]
[402688605,1768805331700,-513.23,0.00043076,120]
[402688607,1768805331728,-513.23,0.00043076,120]
[402688608,1768805331756,-513.23,0.00043076,120]
[402688610,1768805331784,-513.23,0.00043076,120]
[402688612,1768805331815,-513.23,0.00043076,120]
[402688613,1768805331842,-513.23,0.00043076,120]
[402688615,1768805331872,-513.23,0.00043076,120]
[402688617,1768805331901,-513.23,0.00043076,120]
[402688618,1768805331930,-500.0,0.00043076,120]
[402688620,1768805331959,-513.23,0.00043076,120]
[402688622,1768805331988,-500.0,0.00043076,120]
[402688623,1768805332016,-513.23,0.00043076,120]
[402688625,1768805332045,-500.0,0.00043076,120]
[402688627,1768805332074,-513.23,0.00043076,120]
[402688628,1768805332102,-500.0,0.00043076,120]
[402688630,1768805332130,-513.23,0.00043076,120]
[402688631,1768805332159,-500.0,0.00043076,120]
[402688633,1768805332186,-513.23,0.00043076,120]
[402688635,1768805332214,-185.85843722,0.00043076,120]
[402688636,1768805332241,-513.23,0.00043076,120]
[402688638,1768805332270,-513.23,0.00043076,120]
[402688640,1768805332296,-513.23,0.00043076,120]
[402688641,1768805332324,-513.23,0.00043076,120]
[402688643,1768805332349,-513.23,0.00043076,120]
[402688645,1768805332375,-513.23,0.00043076,120]
[402688646,1768805332401,-513.23,0.00043076,120]
[402688648,1768805332427,-513.23,0.00043076,120]
[402688650,1768805332452,-513.23,0.00043076,120]
[402688651,1768805332478,-513.23,0.00043076,120]
[402688653,1768805332504,-513.42714048,0.00043076,120]
[402688655,1768805332532,-500.0,0.00043076,120]
[402688657,1768805332559,-500.0,0.00043076,120]
[402688658,1768805332585,-500.0,0.00043076,120]
[402688660,1768805332612,-500.0,0.00043076,120]
[402688662,1768805332638,-500.0,0.00043076,120]
[402688663,1768805332665,-500.0,0.00043076,120]
[402688665,1768805332692,-500.0,0.00043076,120]
[402688667,1768805332718,-500.0,0.00043076,120]
[402688668,1768805332745,-500.0,0.00043076,120]
[402688670,1768805332775,-500.0,0.00043076,120]
[402688672,1768805332802,-500.0,0.00043076,120]
[402688673,1768805332829,-500.0,0.00043076,120]
[402688677,1768805333106,-500.0,0.00043076,120]
[402688679,1768805333137,-500.0,0.00043076,120]
[402688680,1768805333167,-500.0,0.00043076,120]
[402688682,1768805333198,-500.0,0.00043076,120]
[402688684,1768805333229,-270.74768791,0.00043076,120]
[402688686,1768805333258,-500.0,0.00043076,120]
[402688687,1768805333287,-500.0,0.00043076,120]
[402688689,1768805333315,-500.0,0.00043076,120]
[402688691,1768805333343,-500.0,0.00043076,120]
[402688692,1768805333371,-500.0,0.00043076,120]
[402688694,1768805333402,-500.0,0.00043076,120]
[402688696,1768805333430,-500.0,0.00043076,120]
[402688698,1768805333459,-500.0,0.00043076,120]
[402688699,1768805333487,-293.67590282,0.00043076,120]
[402688701,1768805333515,-500.0,0.00043076,120]
[402688703,1768805333544,-500.0,0.00043076,120]
[402688705,1768805333570,-500.0,0.00043076,120]
[402688706,1768805333597,-500.0,0.00043076,120]
[402688708,1768805333624,-500.0,0.00043076,120]
[402688710,1768805333652,-346.68542403,0.00043076,120]
[402688711,1768805333682,-486.28230177,0.00043076,120]
[402688713,1768805333710,-696.23,0.00043076,120]
[402688715,1768805333738,-696.23,0.00043076,120]
[402688717,1768805333768,-696.23,0.00043076,120]
[402688718,1768805333797,-696.23,0.00043076,120]
[402688720,1768805333830,-696.23,0.00043076,120]
[402688722,1768805333857,-696.23,0.00043076,120]
[402688723,1768805333886,-696.23,0.00043076,120]
[402688725,1768805333916,-696.23,0.00043076,120]
[402688727,1768805333945,-696.23,0.00043076,120]
[402688728,1768805333975,-696.23,0.00043076,120]
[402688730,1768805334004,-696.23,0.00043076,120]
[402688732,1768805334034,-696.23,0.00043076,120]
[402688733,1768805334063,-696.23,0.00043076,120]
[402688735,1768805334092,-696.23,0.00043076,120]
[402688737,1768805334119,-696.23,0.00043076,120]
[402688738,1768805334149,-696.23,0.00043076,120]
[402688740,1768805334178,-696.23,0.00043076,120]
[402688742,1768805334205,-696.23,0.00043076,120]
[402688743,1768805334232,-696.23,0.00043076,120]
[402688745,1768805334259,-696.23,0.00043076,120]
[402688747,1768805334287,-696.23,0.00043076,120]
[402688748,1768805334316,-696.23,0.00043076,120]
[402688750,1768805334343,-696.23,0.00043076,120]
[402688751,1768805334370,-696.42512036,0.00043076,120]
[402688753,1768805334398,-502.33,0.00043076,120]
[402688755,1768805334426,-502.33,0.00043076,120]
[402688756,1768805334454,-502.33,0.00043076,120]
[402688758,1768805334482,-502.33,0.00043076,120]
[402688760,1768805334510,-502.33,0.00043076,120]
[402688761,1768805334539,-502.33,0.00043076,120]
[402688763,1768805334566,-502.33,0.00043076,120]
[402688765,1768805334594,-502.33,0.00043076,120]
[402688766,1768805334622,-502.33,0.00043076,120]
[402688768,1768805334649,-502.33,0.00043076,120]
[402688770,1768805334677,-500.0,0.00043076,120]
[402688771,1768805334706,-502.33,0.00043076,120]
[402688773,1768805334734,-502.33,0.00043076,120]
[402688775,1768805334760,-502.33,0.00043076,120]
[402688776,1768805334788,-502.33,0.00043076,120]
[402688778,1768805334819,-502.33,0.00043076,120]
[402688779,1768805334848,-502.33,0.00043076,120]
[402688781,1768805334877,-502.33,0.00043076,120]
[402688783,1768805334905,-500.0,0.00043076,120]
[402688784,1768805334933,-502.33,0.00043076,120]
[402688786,1768805334962,-500.0,0.00043076,120]
[402688788,1768805334991,-502.33,0.00043076,120]
[402688789,1768805335022,-500.0,0.00043076,120]
[402688791,1768805335053,-502.33,0.00043076,120]
[402688792,1768805335083,-500.0,0.00043076,120]
[402688794,1768805335113,-502.33,0.00043076,120]
[402688796,1768805335144,-500.0,0.00043076,120]
[402688797,1768805335174,-502.33,0.00043076,120]
[402688799,1768805335202,-500.0,0.00043076,120]
[402688801,1768805335231,-502.33,0.00043076,120]
[402688802,1768805335260,-500.0,0.00043076,120]
[402688804,1768805335290,-502.37310258,0.00043076,120]
[402688806,1768805335319,-500.0,0.00043076,120]
[402688807,1768805335347,-563.29640097,0.00043076,120]
[402688809,1768805335373,-500.0,0.00043076,120]
[402688811,1768805335400,-500.0,0.00043076,120]
[402688813,1768805335426,-396.81045313,0.00043076,120]
[402688814,1768805335453,-500.0,0.00043076,120]
[402688816,1768805335480,-500.0,0.00043076,120]
[402688818,1768805335508,-500.0,0.00043076,120]
[402688819,1768805335536,-500.0,0.00043076,120]
[402688821,1768805335562,-588.0,0.00043076,120]
[402688823,1768805335588,-500.0,0.00043076,120]
[402688824,1768805335615,-500.0,0.00043076,120]
[402688826,1768805335641,-500.0,0.00043076,120]
[402688828,1768805335669,-500.0,0.00043076,120]
[402688830,1768805335696,-500.0,0.00043076,120]
[402688831,1768805335725,-500.0,0.00043076,120]
[402688833,1768805335752,-500.0,0.00043076,120]
[402688835,1768805335779,-500.0,0.00043076,120]
[402688842,1768805336039,-500.0,0.00043076,120]
[402688843,1768805336069,-500.0,0.00043076,120]
[402688845,1768805336099,-500.0,0.00043076,120]
[402688847,1768805336128,-552.65331819,0.00043076,120]
[402688848,1768805336156,-500.0,0.00043076,120]
[402688850,1768805336186,-500.0,0.00043076,120]
[402688852,1768805336215,-500.0,0.00043076,120]
[402688853,1768805336245,-500.0,0.00043076,120]
[402688855,1768805336274,-500.0,0.00043076,120]
[402688857,1768805336302,-500.0,0.00043076,120]
[402688858,1768805336329,-500.0,0.00043076,120]
[402688860,1768805336356,-500.0,0.00043076,120]
[402688862,1768805336384,-500.0,0.00043076,120]